[Event "Chinese League Division-A 2024"]
[Site "Fuling Chongqing"]
[Date "2024.07.07"]
[Round "10.7"]
[White "Shen, Fuyan"]
[Black "Peng, Xiongjian"]
[Result "1/2-1/2"]
[ECO "A28"]
[WhiteElo "1830"]
[BlackElo "2521"]
[Annotator "TA"]
[PlyCount "159"]
[EventDate "2024.06.28"]
[EventType "team-tourn"]
[EventCountry "CHN"]
[SourceTitle "playchess.com"]
[Source "ChessBase"]
[SourceQuality "1"]
[TimeControl "40/5400+30:1800+30"]

{[%evp 22,159,0,-10,-5,-10,0,0,8,0,0,-31,-33,-229,-20,-6,0,-8,0,-41,0,-41,-14,-43,-46,-55,-41,-74,-74,-74,-81,-74,-93,-75,-75,-102,-78,-74,-84,-108,-99,-95,-90,-95,-84,-97,-82,-85,-27,-54,-47,-137,-112,-108,-8,-8,0,0,0,0,0,0,0,0,0,0,0,0,0,0,0,0,0,0,0,0,0,0,0,-8,-8,-8,0,-8,-8,-8,-8,-8,0,0,0,-8,-8,-10,0,0,0,0,0,0,0,0,0,0,0,0,0,0,0,0,0,0,0,0,0,0,0,0,0,0,0,0,0,0,0,0,0,0,0,0,0,0,0,0,0,0,0,0,0,0]} 1. c4 {[%emt 0:00:03]} Nf6 {[%emt 0:00:05]} 2. Nc3 {[%emt 0:00:05]} e5 {[%emt 0:00:04]} 3. Nf3 {[%emt 0:00:04]} Nc6 {[%emt 0:00:04]} 4. e3 {[%emt 0:00:05]} Bb4 {[%emt 0:03:08]} 5. Qc2 {[%emt 0:00:19]} Bxc3 {[%emt 0:01:36]} 6. Qxc3 {[%emt 0:00:10]} Qe7 {[%emt 0:00:08]} 7. a3 {[%emt 0:00:09]} a5 {[%emt 0:07:31]} 8. b4 {[%emt 0:00:39]} d6 {[%emt 0:03:48]} 9. b5 {[%emt 0:02:27]} Nd8 {[%emt 0:03:23]} 10. a4 {[%emt 0:17:07]} Bg4 {[%emt 0:02:30]} 11. Be2 {[%emt 0:02:11]} Ne6 {[%emt 0:00:40]} 12. Bb2 {[%emt 0:17:11]} O-O {[%emt 0:01:50]} 13. O-O {[%emt 0:01:57]} Ne4 {[%emt 0:08:34]} 14. Qc2 {[%emt 0:02:50]} f5 {[%emt 0:00:05]} 15. d3 {[%emt 0:04:55]} N4g5 {[%emt 0:05:55]} 16. Qd1 {[%emt 0:08:11]} Rae8 {[%emt 0:02:03]} 17. h3 $2 {[%emt 0:06:16] [#]} (17. Nd2 $15) 17... Bxf3 $2 {[%emt 0:04:47]} (17... Nxh3+ $1 $19 18. gxh3 Bxh3) 18. Bxf3 $11 {[%emt 0:00:14]} Nxf3+ {[%emt 0:00:05]} 19. Qxf3 {[%emt 0:00:07]} b6 {[%emt 0:00:04]} 20. Qd5 {[%emt 0:02:20]} f4 {[%emt 0:03:03]} 21. exf4 {[%emt 0:01:14]} Rxf4 {[%emt 0:03:05]} 22. g3 {[%emt 0:03:57]} Rf7 {[%emt 0:02:16]} 23. Rae1 {[%emt 0:04:52]} Nc5 {[%emt 0:08:18]} 24. f4 {[%emt 0:00:46]} Qe6 $1 {[%emt 0:01:05]} 25. fxe5 {[%emt 0:15:54]} Rxf1+ {[%emt 0:00:51]} 26. Kxf1 {[%emt 0:00:18]} Qxd5 {[%emt 0:04:02]} 27. cxd5 {[%emt 0:00:02]} Nxd3 {[%emt 0:00:19]} 28. Re2 {[%emt 0:00:15]} dxe5 {[%emt 0:01:54]} (28... Nxb2 29. exd6 Rf8+ (29... Rxe2 $2 30. d7 $18) 30. Kg2 $19) 29. Ba3 {[%emt 0:01:09] [#]} Rd8 $1 {[%emt 0:05:58]} 30. Rc2 {[%emt 0:00:06]} Rxd5 {[%emt 0:00:08]} 31. Rxc7 {[%emt 0:00:06]} Rd4 {[%emt 0:00:11]} 32. Rb7 {[%emt 0:04:47]} Rxa4 {[%emt 0:00:46]} 33. Bd6 {[%emt 0:02:27]} Ra2 {[%emt 0:00:47]} 34. Rxb6 {[%emt 0:00:09]} Rf2+ {[%emt 0:00:09]} 35. Kg1 {[%emt 0:00:05]} Rb2 {[%emt 0:00:04]} 36. Rb8+ {[%emt 0:04:00]} (36. Rb7 $15) 36... Kf7 $17 {[%emt 0:00:06]} 37. b6 {[%emt 0:00:35]} a4 {[%emt 0:05:31]} ({Black should try} 37... Ke6 $17 38. Bc7 a4) 38. b7 $11 {[%emt 0:00:53]} Kg6 {[%emt 0:00:09]} 39. Ba3 {[%emt 0:00:31]} Rb1+ {[%emt 0:04:28]} 40. Kg2 {[%emt 0:00:00]} e4 {[%emt 0:00:00]} 41. Re8 {[%emt 0:05:47]} Rxb7 {[%emt 0:00:54]} 42. Rxe4 {[%emt 0:00:03]} h5 {[%emt 0:08:51]} 43. Rxa4 {[%emt 0:00:49]} Rf7 {[%emt 0:00:05]} 44. Ra6+ {[%emt 0:03:04]} Kf5 {[%emt 0:04:42]} 45. Rd6 {[%emt 0:09:37]} Ne1+ {[%emt 0:01:11]} 46. Kg1 {[%emt 0:00:43]} Ke5 {[%emt 0:05:41]} 47. Rd1 {[%emt 0:00:51]} Nf3+ {[%emt 0:01:37]} 48. Kg2 {[%emt 0:00:02]} Ke4 {[%emt 0:00:17]} 49. Rf1 {[%emt 0:00:24]} g5 {[%emt 0:00:58]} 50. g4 {[%emt 0:01:17]} Nh4+ {[%emt 0:00:27]} 51. Kg1 {[%emt 0:00:02]} Ra7 {[%emt 0:01:10]} 52. Bc5 {[%emt 0:01:22]} Ra2 {[%emt 0:01:38]} 53. Rf2 {[%emt 0:00:22]} Ra5 {[%emt 0:07:26]} 54. Bd6 {[%emt 0:01:49]} Nf3+ {[%emt 0:03:14]} 55. Kg2 {[%emt 0:00:17]} Ne1+ {[%emt 0:00:06]} 56. Kf1 {[%emt 0:01:20]} Nd3 {[%emt 0:00:04]} 57. Rf7 {[%emt 0:01:41]} h4 {[%emt 0:00:36]} 58. Kg1 {[%emt 0:00:47]} Ra1+ {[%emt 0:00:52]} 59. Kg2 {[%emt 0:00:01]} Ra2+ {[%emt 0:00:24]} 60. Kg1 {[%emt 0:00:03]} Nf4 {[%emt 0:04:54]} 61. Bxf4 {[%emt 0:00:41]} gxf4 {[%emt 0:00:05]} 62. Rb7 $1 {[%emt 0:01:42]} f3 {[%emt 0:00:17]} 63. Rf7 $1 {[%emt 0:01:48]} Ke3 {[%emt 0:00:20]} 64. g5 $1 {[%emt 0:02:46]} Rg2+ {[%emt 0:00:27]} 65. Kf1 {[%emt 0:00:07]} Rxg5 {[%emt 0:01:54]} 66. Re7+ {[%emt 0:00:16]} Kf4 {[%emt 0:00:12]} 67. Kf2 {[%emt 0:00:22]} Rg2+ {[%emt 0:00:06]} 68. Kf1 {[%emt 0:00:04]} Ra2 {[%emt 0:02:08]} 69. Rg7 {[%emt 0:00:57]} Rh2 {[%emt 0:01:40]} 70. Rf7+ {[%emt 0:00:56]} Kg3 {[%emt 0:01:11]} 71. Rg7+ {[%emt 0:00:05]} Kxh3 {[%emt 0:00:09]} 72. Rf7 {[%emt 0:00:03]} Kg4 {[%emt 0:03:17]} 73. Rg7+ $1 {[%emt 0:00:02]} Kh5 {[%emt 0:04:04]} 74. Rf7 {[%emt 0:00:02]} Kg4 {[%emt 0:03:03]} 75. Rg7+ $1 {[%emt 0:00:04]} Kh3 {[%emt 0:00:02]} 76. Rf7 {[%emt 0:00:06]} f2 {[%emt 0:02:09]} 77. Rf3+ {[%emt 0:00:50]} Kg4 {[%emt 0:00:07]} 78. Rxf2 {[%emt 0:00:03]} Rh1+ {[%emt 0:00:15]} 79. Kg2 {[%emt 0:00:02]} Ra1 {[%emt 0:00:06]} 80. Rb2 {[%emt 0:00:26]} 1/2-1/2

[Event "Chinese League Division-A 2024"]
[Site "Fuling Chongqing"]
[Date "2024.07.07"]
[Round "10.8"]
[White "Cao, Qingfeng"]
[Black "Xu, Pengmo"]
[Result "1/2-1/2"]
[ECO "E01"]
[WhiteElo "2189"]
[BlackElo "1834"]
[Annotator "RC"]
[PlyCount "184"]
[EventDate "2024.06.28"]
[EventType "team-tourn"]
[EventCountry "CHN"]
[SourceTitle "playchess.com"]
[Source "ChessBase"]
[SourceQuality "1"]
[TimeControl "40/5400+30:1800+30"]

1. d4 {[%emt 0:00:03]} d5 {[%emt 0:00:13]} 2. c4 {[%emt 0:00:08]} c6 {[%emt 0:00:17]} 3. Nf3 {[%emt 0:00:13]} Nf6 {[%emt 0:00:25]} 4. Nc3 {[%emt 0:01:40]} e6 {[%emt 0:01:25]} 5. Qd3 {[%emt 0:01:46]} Nbd7 {[%emt 0:07:25]} 6. g3 {[%emt 0:01:37]} Bd6 {[%emt 0:04:38]} 7. Bg2 {[%emt 0:05:12]} O-O {[%emt 0:02:30]} 8. O-O {[%emt 0:00:39]} dxc4 {[%emt 0:04:21]} 9. Qxc4 {[%emt 0:00:20]} e5 {[%emt 0:01:37]} 10. Rd1 {[%emt 0:02:55]} Qe7 {[%emt 0:03:05]} 11. Qb3 {[%emt 0:10:20]} h6 {[%emt 0:12:26]} 12. Nh4 {[%emt 0:09:02]} Qe6 {[%emt 0:15:02]} 13. Qxe6 {[%emt 0:04:51]} fxe6 {[%emt 0:00:07]} 14. dxe5 {[%emt 0:00:53]} Bxe5 {[%emt 0:00:40]} 15. Ng6 {[%emt 0:00:12]} Re8 {[%emt 0:00:38]} 16. Nxe5 {[%emt 0:02:11]} Nxe5 {[%emt 0:00:08]} 17. b3 {[%emt 0:08:12]} Nf7 {[%emt 0:07:16]} 18. Bb2 {[%emt 0:06:15]} e5 {[%emt 0:03:57]} 19. Na4 {[%emt 0:09:43]} Bg4 {[%emt 0:05:07]} 20. f3 {[%emt 0:00:35]} Be6 {[%emt 0:04:05]} 21. Nc5 {[%emt 0:01:06]} Bc8 {[%emt 0:07:04]} 22. e4 {[%emt 0:04:55]} b6 {[%emt 0:01:31]} 23. Nd3 {[%emt 0:00:18]} a5 {[%emt 0:01:09]} 24. f4 {[%emt 0:09:31]} Ng4 {[%emt 0:02:40]} 25. Bf3 {[%emt 0:05:29]} g5 {[%emt 0:03:37]} 26. Nxe5 {[%emt 0:03:03]} Ngxe5 {[%emt 0:01:14]} 27. fxe5 {[%emt 0:00:05]} Be6 {[%emt 0:01:39]} 28. Bh5 {[%emt 0:03:24]} a4 {[%emt 0:02:33]} 29. b4 {[%emt 0:04:07]} a3 {[%emt 0:01:42]} 30. Bc3 {[%emt 0:00:15]} Red8 {[%emt 0:02:23]} 31. Kf2 {[%emt 0:00:49]} Rxd1 {[%emt 0:02:17]} 32. Bxd1 {[%emt 0:00:02]} b5 {[%emt 0:00:35]} 33. Ke3 {[%emt 0:00:57]} Kf8 {[%emt 0:02:09]} 34. Bh5 {[%emt 0:00:55]} Rd8 {[%emt 0:00:50]} 35. Bd4 {[%emt 0:00:26]} Rd7 {[%emt 0:00:28]} 36. Rf1 {[%emt 0:01:42]} Kg7 {[%emt 0:00:38]} 37. Rf6 {[%emt 0:00:48]} Nd8 {[%emt 0:00:25]} 38. Bc3 {[%emt 0:01:53]} Kh7 {[%emt 0:00:34]} 39. Bg6+ {[%emt 0:01:27]} Kg7 {[%emt 0:00:26]} 40. Bf5 {[%emt 0:00:00]} Re7 {[%emt 0:00:00]} 41. Rg6+ {[%emt 0:16:40]} Kf8 {[%emt 0:07:17]} 42. Rf6+ {[%emt 0:01:06]} Kg7 {[%emt 0:01:20]} 43. Kd2 {[%emt 0:00:49]} Bxa2 {[%emt 0:03:26]} 44. e6 {[%emt 0:00:40]} Kg8 {[%emt 0:02:05]} 45. Rg6+ {[%emt 0:01:39]} Kf8 {[%emt 0:01:34]} 46. Bf6 {[%emt 0:03:27]} Rxe6 {[%emt 0:07:13]} 47. Bxe6 {[%emt 0:02:39]} Nxe6 {[%emt 0:00:07]} 48. Rxh6 {[%emt 0:00:22]} c5 {[%emt 0:00:39]} 49. Bc3 {[%emt 0:01:06]} Bc4 {[%emt 0:00:41]} 50. Rh7 {[%emt 0:02:12]} a2 {[%emt 0:00:40]} 51. Ra7 {[%emt 0:00:18]} Ke8 {[%emt 0:00:33]} 52. h4 {[%emt 0:01:21]} cxb4 {[%emt 0:00:23]} 53. Bxb4 {[%emt 0:01:34]} gxh4 {[%emt 0:01:38]} 54. gxh4 {[%emt 0:00:03]} Nd4 {[%emt 0:00:10]} 55. Kc3 {[%emt 0:00:38]} Nc6 {[%emt 0:00:48]} 56. Ra8+ {[%emt 0:00:33]} Kf7 {[%emt 0:00:12]} 57. Bd6 {[%emt 0:00:52]} Kg6 {[%emt 0:00:35]} 58. Kb2 {[%emt 0:02:05]} Nd4 {[%emt 0:00:39]} 59. Bb4 {[%emt 0:02:13]} Nf3 {[%emt 0:05:15]} 60. Rh8 {[%emt 0:00:48]} Ne5 {[%emt 0:01:00]} 61. h5+ {[%emt 0:00:05]} Kg7 {[%emt 0:00:45]} 62. Ra8 {[%emt 0:00:33]} Nd3+ {[%emt 0:00:24]} 63. Kc3 {[%emt 0:00:02]} Kh6 {[%emt 0:00:22]} 64. Bd6 {[%emt 0:01:41]} Kxh5 {[%emt 0:00:31]} 65. e5 {[%emt 0:00:01]} Nf4 {[%emt 0:01:38]} 66. Kb2 {[%emt 0:00:02]} Kg6 {[%emt 0:00:23]} 67. Rf8 {[%emt 0:01:58]} Ne6 {[%emt 0:01:05]} 68. Rf2 {[%emt 0:00:28]} Nd4 {[%emt 0:00:28]} 69. Bb4 {[%emt 0:00:22]} Kg5 {[%emt 0:02:02]} 70. Bd2+ {[%emt 0:00:08]} Kg6 {[%emt 0:00:09]} 71. Bc3 {[%emt 0:00:11]} Ne6 {[%emt 0:00:27]} 72. Ka3 {[%emt 0:00:42]} Nc5 {[%emt 0:00:49]} 73. Rf3 {[%emt 0:01:01]} Kg5 {[%emt 0:00:40]} 74. Bd4 {[%emt 0:00:29]} Ne6 {[%emt 0:00:14]} 75. Ba1 {[%emt 0:00:26]} Kg4 {[%emt 0:01:04]} 76. Rf6 {[%emt 0:00:20]} Kg5 {[%emt 0:00:31]} 77. Kb4 {[%emt 0:00:17]} Kg4 {[%emt 0:00:15]} 78. Bb2 {[%emt 0:00:58]} Kg5 {[%emt 0:00:08]} 79. Bc1+ {[%emt 0:00:35]} Kg4 {[%emt 0:00:10]} 80. Bb2 {[%emt 0:00:00]} Nf4 {[%emt 0:00:35]} 81. Ka5 {[%emt 0:00:27]} Ne6 {[%emt 0:00:52]} 82. Kb6 {[%emt 0:00:12]} Kg5 {[%emt 0:00:08]} 83. Kc6 {[%emt 0:00:17]} Kg4 {[%emt 0:00:11]} 84. Kd6 {[%emt 0:00:51]} Nf4 {[%emt 0:00:23]} 85. Rf8 {[%emt 0:00:23]} Ne6 {[%emt 0:00:21]} 86. Rf6 {[%emt 0:01:01]} Nf4 {[%emt 0:00:07]} 87. Rf8 {[%emt 0:00:03]} Ne6 {[%emt 0:00:22]} 88. Rf2 {[%emt 0:01:08]} Nf4 {[%emt 0:00:14]} 89. Ba1 {[%emt 0:00:19]} Kg3 {[%emt 0:00:44]} 90. Rc2 {[%emt 0:00:44]} Kf3 {[%emt 0:00:22]} 91. Rc3+ {[%emt 0:00:05]} Ke2 {[%emt 0:01:33]} 92. Ra3 {[%emt 0:00:17]} Kd2 {[%emt 0:00:27]} 1/2-1/2

[Event "Chinese League Division-A 2024"]
[Site "Fuling Chongqing"]
[Date "2024.07.07"]
[Round "10.9"]
[White "Zhao, Yunqing"]
[Black "Sun, Fanghui"]
[Result "1/2-1/2"]
[ECO "D78"]
[WhiteElo "1986"]
[BlackElo "2115"]
[Annotator "RC"]
[PlyCount "84"]
[EventDate "2024.06.28"]
[EventType "team-tourn"]
[EventCountry "CHN"]
[SourceTitle "playchess.com"]
[Source "ChessBase"]
[SourceQuality "1"]
[TimeControl "40/5400+30:1800+30"]

1. d4 {[%emt 0:00:03]} Nf6 {[%emt 0:00:06]} 2. Nf3 {[%emt 0:00:05]} g6 {[%emt 0:00:37]} 3. g3 {[%emt 0:00:07]} Bg7 {[%emt 0:00:06]} 4. Bg2 {[%emt 0:00:06]} d5 {[%emt 0:00:10]} 5. O-O {[%emt 0:00:11]} c6 {[%emt 0:00:06]} 6. b3 {[%emt 0:00:07]} O-O {[%emt 0:00:07]} 7. c4 {[%emt 0:00:05]} Bf5 {[%emt 0:01:27]} 8. Bb2 {[%emt 0:00:14]} a5 {[%emt 0:00:27]} 9. Nc3 {[%emt 0:01:04]} Ne4 {[%emt 0:05:51]} 10. Ne5 {[%emt 0:02:21]} Nxc3 {[%emt 0:04:32]} 11. Bxc3 {[%emt 0:00:04]} Be6 {[%emt 0:01:03]} 12. e4 {[%emt 0:15:53]} dxe4 {[%emt 0:09:07]} 13. Bxe4 {[%emt 0:00:39]} Nd7 {[%emt 0:00:12]} 14. f4 {[%emt 0:08:17]} Nxe5 {[%emt 0:16:58]} 15. dxe5 {[%emt 0:05:28]} a4 {[%emt 0:05:54]} 16. Qc2 {[%emt 0:10:19]} Qb6+ {[%emt 0:03:08]} 17. Kg2 {[%emt 0:03:06]} Qc5 {[%emt 0:03:30]} 18. Rfd1 {[%emt 0:10:17]} Rad8 {[%emt 0:02:04]} 19. Rxd8 {[%emt 0:11:38]} Rxd8 {[%emt 0:00:06]} 20. Rd1 {[%emt 0:00:11]} Rxd1 {[%emt 0:08:26]} 21. Qxd1 {[%emt 0:00:05]} axb3 {[%emt 0:00:56]} 22. axb3 {[%emt 0:00:47]} b5 {[%emt 0:00:43]} 23. Qd4 {[%emt 0:12:42]} Qxd4 {[%emt 0:03:48]} 24. Bxd4 {[%emt 0:00:05]} bxc4 {[%emt 0:00:08]} 25. b4 {[%emt 0:03:25]} Bd7 {[%emt 0:00:39]} 26. Kf2 {[%emt 0:01:08]} Kf8 {[%emt 0:04:25]} 27. Ke3 {[%emt 0:01:12]} Ke8 {[%emt 0:00:46]} 28. Bb6 {[%emt 0:03:16]} f6 {[%emt 0:01:26]} 29. Bc7 {[%emt 0:02:10]} fxe5 {[%emt 0:02:49]} 30. Bxe5 {[%emt 0:01:03]} Bxe5 {[%emt 0:00:53]} 31. fxe5 {[%emt 0:00:05]} Kd8 {[%emt 0:00:41]} 32. Kd4 {[%emt 0:01:39]} Kc7 {[%emt 0:00:46]} 33. Kxc4 {[%emt 0:00:41]} Kb6 {[%emt 0:00:06]} 34. Bd3 {[%emt 0:01:03]} Be6+ {[%emt 0:04:26]} 35. Kd4 {[%emt 0:00:29]} Bh3 {[%emt 0:00:51]} 36. Ke3 {[%emt 0:06:30]} c5 {[%emt 0:06:56]} 37. bxc5+ {[%emt 0:00:08]} Kxc5 {[%emt 0:00:04]} 38. Kf4 {[%emt 0:02:00]} Kd4 {[%emt 0:02:25]} 39. Bb1 {[%emt 0:00:33]} e6 {[%emt 0:00:25]} 40. g4 {[%emt 0:00:00]} g5+ {[%emt 0:00:00]} 41. Kxg5 {[%emt 0:03:14]} Kxe5 {[%emt 0:02:55]} 42. Bxh7 {[%emt 0:03:22]} Bxg4 {[%emt 0:00:06]} 1/2-1/2

[Event "Chinese League Division-A 2024"]
[Site "Fuling Chongqing"]
[Date "2024.07.07"]
[Round "10.10"]
[White "Zhang, Lanlin"]
[Black "Du, Yuxin"]
[Result "1-0"]
[ECO "B12"]
[WhiteElo "2161"]
[BlackElo "1960"]
[Annotator "RC"]
[PlyCount "117"]
[EventDate "2024.06.28"]
[EventType "team-tourn"]
[EventCountry "CHN"]
[SourceTitle "playchess.com"]
[Source "ChessBase"]
[SourceQuality "1"]
[TimeControl "40/5400+30:1800+30"]

1. e4 {[%emt 0:00:06]} c6 {[%emt 0:00:17]} 2. d4 {[%emt 0:00:03]} d5 {[%emt 0:00:05]} 3. e5 {[%emt 0:00:04]} Bf5 {[%emt 0:00:24]} 4. h4 {[%emt 0:00:05]} h5 {[%emt 0:00:08]} 5. Bd3 {[%emt 0:00:03]} Bxd3 {[%emt 0:00:09]} 6. Qxd3 {[%emt 0:00:02]} Qa5+ {[%emt 0:00:38]} 7. Nd2 {[%emt 0:00:32]} e6 {[%emt 0:00:52]} 8. Ne2 {[%emt 0:01:18]} Nh6 {[%emt 0:06:08]} 9. O-O {[%emt 0:00:56]} Nf5 {[%emt 0:01:24]} 10. Nf3 {[%emt 0:00:05]} Qa6 {[%emt 0:05:23]} 11. Qd1 {[%emt 0:03:45]} c5 {[%emt 0:04:19]} 12. c3 {[%emt 0:00:27]} Nc6 {[%emt 0:03:24]} 13. Bg5 {[%emt 0:01:44]} b6 {[%emt 0:07:10]} 14. Rc1 {[%emt 0:15:47]} Be7 {[%emt 0:28:03]} 15. b3 {[%emt 0:13:50]} Rd8 {[%emt 0:12:25]} 16. Qd2 {[%emt 0:02:11]} Bxg5 {[%emt 0:06:12]} 17. hxg5 {[%emt 0:00:24]} g6 {[%emt 0:00:27]} 18. g3 {[%emt 0:01:01]} O-O {[%emt 0:06:16]} 19. Kg2 {[%emt 0:00:43]} Kg7 {[%emt 0:00:19]} 20. Rh1 {[%emt 0:00:46]} Rh8 {[%emt 0:00:29]} 21. Nf4 {[%emt 0:03:01]} cxd4 {[%emt 0:08:12]} 22. cxd4 {[%emt 0:00:08]} Rc8 {[%emt 0:00:41]} 23. Ne2 {[%emt 0:09:46]} Qa5 {[%emt 0:00:43]} 24. Nc3 {[%emt 0:01:17]} Qb4 {[%emt 0:00:44]} 25. Qf4 {[%emt 0:04:02]} Ncxd4 {[%emt 0:02:40]} 26. a3 {[%emt 0:01:40]} Qc5 {[%emt 0:05:02]} 27. b4 {[%emt 0:23:01]} Qc4 {[%emt 0:00:07]} 28. Nb5 {[%emt 0:04:15]} Qxb5 {[%emt 0:00:25]} 29. Nxd4 {[%emt 0:00:06]} Qd3 {[%emt 0:00:55]} 30. Rhd1 {[%emt 0:00:16]} Qe4+ {[%emt 0:00:48]} 31. Qxe4 {[%emt 0:02:13]} dxe4 {[%emt 0:00:06]} 32. Nxe6+ {[%emt 0:00:05]} Kh7 {[%emt 0:00:04]} 33. Rxc8 {[%emt 0:02:48]} Rxc8 {[%emt 0:00:03]} 34. Rd7 {[%emt 0:00:05]} Kg8 {[%emt 0:00:06]} 35. Nc7 {[%emt 0:00:06]} e3 {[%emt 0:02:08]} 36. fxe3 {[%emt 0:02:39]} Nxe3+ {[%emt 0:00:06]} 37. Kf3 {[%emt 0:00:04]} Nf5 {[%emt 0:00:47]} 38. g4 {[%emt 0:01:28]} hxg4+ {[%emt 0:00:35]} 39. Kxg4 {[%emt 0:00:05]} a5 {[%emt 0:00:40]} 40. b5 {[%emt 0:00:00]} Ng7 {[%emt 0:00:00]} 41. Nd5 {[%emt 0:00:55]} Rc4+ {[%emt 0:01:16]} 42. Kg3 {[%emt 0:01:20]} Ne6 {[%emt 0:09:41]} 43. Nxb6 {[%emt 0:01:02]} Rc3+ {[%emt 0:00:57]} 44. Kf2 {[%emt 0:00:15]} Rxa3 {[%emt 0:04:13]} 45. Nc4 {[%emt 0:00:13]} Rb3 {[%emt 0:06:31]} 46. b6 {[%emt 0:00:31]} Kg7 {[%emt 0:03:54]} 47. Ra7 {[%emt 0:08:26]} Nxg5 {[%emt 0:02:51]} 48. b7 {[%emt 0:00:56]} Ne4+ {[%emt 0:00:41]} 49. Ke2 {[%emt 0:00:25]} Nc5 {[%emt 0:01:01]} 50. Nxa5 {[%emt 0:00:07]} Rb6 {[%emt 0:04:17]} 51. Ke3 {[%emt 0:00:43]} Kh6 {[%emt 0:00:08]} 52. Kd4 {[%emt 0:01:38]} Nd7 {[%emt 0:01:02]} 53. Ra8 {[%emt 0:00:18]} Rb5 {[%emt 0:00:26]} 54. Rd8 {[%emt 0:00:31]} Rxa5 {[%emt 0:00:32]} 55. Rxd7 {[%emt 0:00:06]} Rb5 {[%emt 0:00:05]} 56. Rxf7 {[%emt 0:00:02]} g5 {[%emt 0:00:27]} 57. Kc4 {[%emt 0:00:05]} Rb1 {[%emt 0:00:15]} 58. Kc5 {[%emt 0:00:03]} Kg6 {[%emt 0:00:42]} 59. Rf6+ {[%emt 0:00:04]} 1-0

[Event "Chinese League Division-A 2024"]
[Site "Fuling Chongqing"]
[Date "2024.07.07"]
[Round "10.11"]
[White "Xu, Yi"]
[Black "Chen, Qi b"]
[Result "1/2-1/2"]
[ECO "C65"]
[WhiteElo "2496"]
[BlackElo "2481"]
[Annotator "TA"]
[PlyCount "60"]
[EventDate "2024.06.28"]
[EventType "team-tourn"]
[EventCountry "CHN"]
[SourceTitle "playchess.com"]
[Source "ChessBase"]
[SourceQuality "1"]
[TimeControl "40/5400+30:1800+30"]

{[%evp 9,60,0,-10,0,0,0,0,-9,0,0,0,0,0,0,0,0,0,0,0,0,0,0,0,0,-5,0,0,0,0,-6,0,-8,-7,-8,0,-15,-12,-13,-12,-10,-12,-15,-11,-10,-4,-5,0,0,0,-8,0,0,0]} 1. e4 {[%emt 0:00:03]} e5 {[%emt 0:00:12]} 2. Nf3 {[%emt 0:00:11]} Nc6 {[%emt 0:00:07]} 3. Bb5 {[%emt 0:01:36]} Nf6 {[%emt 0:01:58]} 4. d3 {[%emt 0:01:21]} Bc5 {[%emt 0:01:18]} 5. Bg5 {[%emt 0:02:31]} h6 {[%emt 0:03:56] The position is equal.} 6. Bh4 {[%emt 0:00:11]} Ne7 {[%emt 0:01:26]} 7. d4 {[%emt 0:04:51]} exd4 {[%emt 0:01:18] Black wants to play ...Ng6.} 8. e5 {[%emt 0:02:38]} Nfd5 {[%emt 0:03:31]} 9. O-O {[%emt 0:02:11]} O-O {[%emt 0:04:32]} 10. Nxd4 {[%emt 0:05:04]} Bxd4 {[%emt 0:04:27]} 11. Qxd4 {[%emt 0:00:10]} Nf5 {[%emt 0:00:18][%csl LRd4,LRh4]} 12. Qxd5 {[%emt 0:02:43]} Qxh4 {[%emt 0:00:16]} 13. Bd3 {[%emt 0:00:13]} d6 {[%emt 0:04:31]} 14. Bxf5 {[%emt 0:00:50]} Bxf5 {[%emt 0:00:09][%cal Bc8f5,Bf5e4,Be4f3,Bf3g4][%mdl 32]} 15. exd6 {[%emt 0:00:05]} Be4 {[%emt 0:00:41]} 16. Qd4 {[%emt 0:00:25] [#] aiming for Nc3.} Qg4 {[%emt 0:00:32][%csl Ge4][%cal Rg4g2]} 17. f3 {[%emt 0:00:12]} (17. dxc7 $2 Qxg2#) 17... Bxf3 {[%emt 0:00:05]} 18. Qxg4 {[%emt 0:01:22]} Bxg4 {[%emt 0:00:06]} 19. dxc7 {[%emt 0:00:03]} Rac8 {[%emt 0:00:43]} 20. Nd2 {[%emt 0:00:09]} Rxc7 {[%emt 0:00:16]} 21. c3 {[%emt 0:00:06]} Rd7 {[%emt 0:03:04]} 22. Nf3 {[%emt 0:00:08]} Bxf3 {[%emt 0:00:30]} 23. Rxf3 $11 {[%emt 0:00:05][%mdl 4096] Endgame. KRR-KRR} Rd2 {[%emt 0:00:20]} 24. Rf2 {[%emt 0:00:05]} Rfd8 {[%emt 0:00:11]} 25. Raf1 {[%emt 0:00:19]} Rxf2 {[%emt 0:00:06]} 26. Rxf2 {[%emt 0:00:03]} Rd1+ {[%emt 0:00:05]} 27. Rf1 {[%emt 0:00:03]} Rd2 {[%emt 0:00:07]} 28. Rf2 {[%emt 0:00:04]} Rd1+ {[%emt 0:00:05]} 29. Rf1 {[%emt 0:00:04]} Rd2 {[%emt 0:00:04]} 30. Rf2 {[%emt 0:00:04]} Rd1+ {[%emt 0:00:37] An uneventful encounter.   Weighted Error Value: White=0.01 (flawless) /Black=0.02 (flawless) .  OK:         	White=10    	Black=11     Best:        	White=3     	Black=1} 1/2-1/2